fUSD/lending_fUSD_20250617
["ID","MTS","AMOUNT","RATE_DAILY","PERIOD"]
[366291840,1750176655026,-490.0,0.00016438,2]
[366291842,1750176655035,-1899.29,0.00016438,2]
[366291844,1750176655045,-490.0,0.00016438,2]
[366291846,1750176655055,-490.0,0.00016438,2]
[366291848,1750176655065,-490.0,0.00016438,2]
[366291850,1750176655074,-490.0,0.00016438,2]
[366291852,1750176655084,-490.0,0.00016438,2]
[366291854,1750176655093,-490.0,0.00016438,2]
[366291856,1750176655103,-490.0,0.00016438,2]
[366291858,1750176655113,-558.09,0.00016438,2]
[366291860,1750176655122,-490.0,0.00016438,2]
[366291862,1750176655132,-490.0,0.00016438,2]
[366291864,1750176655143,-559.94,0.00016438,2]
[366291866,1750176655153,-490.0,0.00016438,2]
[366291868,1750176655163,-490.0,0.00016438,2]
[366291870,1750176655173,-490.0,0.00016438,2]
[366291872,1750176655183,-490.0,0.00016438,2]
[366291874,1750176655193,-490.0,0.00016438,2]
[366291876,1750176655204,-490.0,0.00016438,2]
[366291878,1750176655214,-1223.2,0.00016438,2]
[366291880,1750176655224,-490.0,0.00016438,2]
[366291882,1750176655234,-490.0,0.00016438,2]
[366291884,1750176655244,-490.0,0.00016438,2]
[366291886,1750176655254,-490.0,0.00016438,2]
[366291888,1750176655264,-490.0,0.00016438,2]
[366291890,1750176655274,-490.0,0.00016438,2]
[366291892,1750176655284,-490.0,0.00016438,2]
[366291894,1750176655294,-1239.18,0.00016438,2]
[366291896,1750176655303,-739.31,0.00016438,2]
[366291898,1750176655314,-490.0,0.00016438,2]
[366291899,1750176655324,-490.0,0.00016438,2]
[366291900,1750176655334,-490.0,0.00016438,2]
[366291901,1750176655345,-490.0,0.00016438,2]
[366291902,1750176655355,-461.35819104,0.00016438,2]
[366291903,1750176655365,-490.0,0.00016438,2]
[366291904,1750176655375,-490.0,0.00016438,2]
[366291905,1750176655385,-490.0,0.00016438,2]
[366291906,1750176655394,-490.0,0.00016438,2]
[366291907,1750176655404,-490.0,0.00016438,2]
[366291908,1750176655414,-490.0,0.00016438,2]
[366291909,1750176655423,-490.0,0.00016438,2]
[366291910,1750176655433,-490.0,0.00016438,2]
[366291911,1750176655444,-490.0,0.00016438,2]
[366291912,1750176655454,-490.0,0.00016438,2]
[366291913,1750176655464,-490.0,0.00016438,2]
[366291914,1750176655475,-1433.29,0.00016438,2]
[366291915,1750176655485,-489.82635256,0.00016438,2]
[366291916,1750176655495,-491.57,0.00016438,2]
[366291917,1750176655505,-490.0,0.00016438,2]
[366291918,1750176655514,-490.0,0.00016438,2]
[366291919,1750176655524,-490.0,0.00016438,2]
[366291920,1750176655534,-490.0,0.00016438,2]
[366291921,1750176655544,-490.0,0.00016438,2]
[366291922,1750176655554,-1091.46,0.00016438,2]
[366291923,1750176655564,-2139.82,0.00016438,2]
[366291924,1750176655574,-490.0,0.00016438,2]
[366291925,1750176655583,-490.0,0.00016438,2]
[366291927,1750176655594,-490.0,0.00016438,2]
[366291929,1750176655604,-490.0,0.00016438,2]
[366291931,1750176655613,-490.0,0.00016438,2]
[366291933,1750176655623,-3640.36,0.00016438,2]
[366291935,1750176655633,-490.0,0.00016438,2]
[366291937,1750176655643,-298.92684136,0.00016438,2]
[366291940,1750176655653,-490.0,0.00016438,2]
[366291941,1750176655663,-490.0,0.00016438,2]
[366291943,1750176655673,-652.37,0.00016438,2]
[366291946,1750176655683,-490.0,0.00016438,2]
[366291948,1750176655695,-490.0,0.00016438,2]
[366291950,1750176655705,-490.0,0.00016438,2]
[366291952,1750176655715,-490.0,0.00016438,2]
[366291954,1750176655724,-490.0,0.00016438,2]
[366291955,1750176655735,-490.0,0.00016438,2]
[366291958,1750176655745,-490.0,0.00016438,2]
[366291960,1750176655754,-593.45242222,0.00016438,2]
[366291962,1750176655764,-490.0,0.00016438,2]
[366291964,1750176655776,-490.0,0.00016438,2]
[366291965,1750176655786,-490.0,0.00016438,2]
[366291967,1750176655796,-490.0,0.00016438,2]
[366291970,1750176655806,-1127.0,0.00016438,2]
[366291972,1750176655816,-305.47432386,0.00016438,2]
[366291974,1750176655826,-490.0,0.00016438,2]
[366291976,1750176655836,-1425.05,0.00016438,2]
[366291978,1750176655846,-1890.56,0.00016438,2]
[366291980,1750176655855,-490.0,0.00016438,2]
[366291982,1750176655865,-490.0,0.00016438,2]
[366291984,1750176655875,-503.51,0.00016438,2]
[366291986,1750176655885,-1615.16,0.00016438,2]
[366291988,1750176655895,-500.0,0.00016438,2]
[366291990,1750176655906,-490.0,0.00016438,2]
[366291992,1750176655916,-490.0,0.00016438,2]
[366291994,1750176655926,-490.0,0.00016438,2]
[366291996,1750176655936,-490.65869488,0.00016438,2]
[366291998,1750176655948,-11332.86,0.00016438,2]
[366292036,1750176656294,-490.0,0.00016438,2]
[366292038,1750176656307,-1620.73,0.00016438,2]
[366292040,1750176656317,-490.0,0.00016438,2]
[366292042,1750176656327,-490.0,0.00016438,2]
[366292044,1750176656338,-2930.33,0.00016438,2]
[366292046,1750176656348,-1785.32,0.00016438,2]
[366292049,1750176656358,-1172.2,0.00016438,2]
[366292051,1750176656368,-490.0,0.00016438,2]
[366292053,1750176656378,-490.0,0.00016438,2]
[366292055,1750176656388,-338.83737685,0.00016438,2]
[366292057,1750176656399,-490.0,0.00016438,2]
[366292059,1750176656409,-490.0,0.00016438,2]
[366292061,1750176656419,-490.0,0.00016438,2]
[366292063,1750176656429,-490.0,0.00016438,2]
[366292065,1750176656439,-490.0,0.00016438,2]
[366292067,1750176656450,-3036.03,0.00016438,2]
[366292069,1750176656460,-490.0,0.00016438,2]
[366292071,1750176656470,-490.0,0.00016438,2]
[366292073,1750176656479,-490.0,0.00016438,2]
[366292075,1750176656489,-490.0,0.00016438,2]
[366292077,1750176656499,-1452.22,0.00016438,2]
[366292079,1750176656509,-490.0,0.00016438,2]
[366292081,1750176656519,-883.49,0.00016438,2]
[366292083,1750176656530,-490.0,0.00016438,2]
[366292085,1750176656539,-490.0,0.00016438,2]
[366292087,1750176656549,-490.0,0.00016438,2]
[366292089,1750176656559,-2046.56,0.00016438,2]
[366292091,1750176656569,-490.0,0.00016438,2]
[366292093,1750176656579,-302.97018705,0.00016438,2]
[366292095,1750176656588,-854.1,0.00016438,2]
[366292097,1750176656598,-1008.17,0.00016438,2]
[366292099,1750176656608,-590.77,0.00016438,2]
[366292101,1750176656617,-2681.92,0.00016438,2]
[366292103,1750176656627,-490.0,0.00016438,2]
[366292105,1750176656637,-490.0,0.00016438,2]
[366292108,1750176656647,-745.32,0.00016438,2]
[366292109,1750176656656,-490.0,0.00016438,2]
[366292112,1750176656666,-627.23,0.00016438,2]
[366292114,1750176656676,-1615.92,0.00016438,2]
[366292116,1750176656686,-490.0,0.00016438,2]
[366292118,1750176656697,-490.0,0.00016438,2]
[366292120,1750176656709,-490.0,0.00016438,2]
[366292122,1750176656719,-1366.97,0.00016438,2]
[366292124,1750176656729,-476.17174611,0.00016438,2]
[366292126,1750176656739,-490.0,0.00016438,2]
[366292128,1750176656750,-490.0,0.00016438,2]
[366292130,1750176656759,-490.0,0.00016438,2]
[366292132,1750176656769,-490.0,0.00016438,2]
[366292134,1750176656779,-229.3958428,0.00016438,2]
[366292136,1750176656789,-670.35,0.00016438,2]
[366292137,1750176656799,-1147.29,0.00016438,2]
[366292139,1750176656808,-490.0,0.00016438,2]
[366292141,1750176656819,-490.0,0.00016438,2]
[366292143,1750176656828,-490.0,0.00016438,2]
[366292145,1750176656838,-279.36361421,0.00016438,2]
[366292147,1750176656848,-490.0,0.00016438,2]
[366292149,1750176656857,-490.0,0.00016438,2]
[366292151,1750176656868,-490.0,0.00016438,2]
[366292153,1750176656877,-1329.75,0.00016438,2]
[366292155,1750176656886,-490.0,0.00016438,2]
[366292156,1750176656896,-553.52572994,0.00016438,2]
[366292157,1750176656905,-490.0,0.00016438,2]
[366292158,1750176656915,-537.5,0.00016438,2]
[366292159,1750176656925,-3693.08,0.00016438,2]
[366292160,1750176656934,-1024.68,0.00016438,2]
[366292161,1750176656944,-490.0,0.00016438,2]
[366292162,1750176656954,-490.0,0.00016438,2]
[366292163,1750176656964,-490.0,0.00016438,2]
[366292164,1750176656974,-490.0,0.00016438,2]
[366292165,1750176656984,-490.0,0.00016438,2]
[366292166,1750176656994,-490.0,0.00016438,2]
[366292168,1750176657003,-490.0,0.00016438,2]
[366292170,1750176657013,-500.0,0.00016438,2]
[366292172,1750176657024,-490.0,0.00016438,2]
[366292174,1750176657034,-500.0,0.00016438,2]
[366292176,1750176657044,-490.0,0.00016438,2]
[366292178,1750176657054,-500.0,0.00016438,2]
[366292180,1750176657063,-490.0,0.00016438,2]
[366292182,1750176657072,-500.0,0.00016438,2]
[366292184,1750176657082,-500.0,0.00016438,2]
[366292186,1750176657092,-490.0,0.00016438,2]
[366292188,1750176657102,-491.66960996,0.00016438,2]
[366292190,1750176657111,-509.45012815,0.00016438,2]
[366292192,1750176657122,-490.0,0.00016438,2]
[366292194,1750176657132,-490.0,0.00016438,2]
[366292196,1750176657142,-1529.08,0.00016438,2]
[366292199,1750176657151,-490.0,0.00016438,2]
[366292201,1750176657161,-490.0,0.00016438,2]
[366292203,1750176657170,-742.42,0.00016438,2]
[366292204,1750176657180,-490.0,0.00016438,2]
[366292206,1750176657189,-2673.51,0.00016438,2]
[366292209,1750176657201,-490.0,0.00016438,2]
[366292211,1750176657211,-500.0,0.00016438,2]
[366292213,1750176657221,-500.0,0.00016438,2]
[366292215,1750176657231,-500.0,0.00016438,2]
[366292217,1750176657242,-500.0,0.00016438,2]
[366292219,1750176657251,-490.0,0.00016438,2]
[366292221,1750176657261,-3127.69,0.00016438,2]
[366292223,1750176657272,-491.33608485,0.00016438,2]
[366292225,1750176657282,-1305.87,0.00016438,2]
[366292227,1750176657292,-500.0,0.00016438,2]
[366292229,1750176657302,-500.0,0.00016438,2]
[366292231,1750176657312,-857.76,0.00016438,2]
[366292233,1750176657322,-490.0,0.00016438,2]
[366292235,1750176657332,-490.0,0.00016438,2]
[366292237,1750176657344,-1175.93,0.00016438,2]
[366292240,1750176657354,-921.57,0.00016438,2]
[366292242,1750176657364,-980.69,0.00016438,2]
[366292244,1750176657373,-490.0,0.00016438,2]
[366292246,1750176657383,-385.41682893,0.00016438,2]
[366292248,1750176657393,-490.0,0.00016438,2]
[366292250,1750176657402,-490.0,0.00016438,2]
[366292252,1750176657412,-490.0,0.00016438,2]
[366292254,1750176657421,-490.0,0.00016438,2]
[366292256,1750176657430,-1032.83,0.00016438,2]
[366292258,1750176657440,-490.0,0.00016438,2]
[366292260,1750176657450,-490.0,0.00016438,2]
[366292262,1750176657459,-2590.26,0.00016438,2]
[366292264,1750176657469,-490.0,0.00016438,2]
[366292266,1750176657478,-490.0,0.00016438,2]
[366292268,1750176657487,-490.0,0.00016438,2]
[366292270,1750176657498,-4322.67,0.00016438,2]
[366292272,1750176657507,-490.0,0.00016438,2]
[366292274,1750176657517,-657.41,0.00016438,2]
[366292276,1750176657526,-1000.0,0.00016438,2]
[366292278,1750176657536,-490.0,0.00016438,2]
[366292280,1750176657547,-930.45,0.00016438,2]
[366292282,1750176657557,-801.26,0.00016438,2]
[366292284,1750176657567,-490.0,0.00016438,2]
[366292286,1750176657577,-490.0,0.00016438,2]
[366292288,1750176657586,-278.58316462,0.00016438,2]
[366292290,1750176657596,-444.89376027,0.00016438,2]
[366292292,1750176657605,-490.0,0.00016438,2]
[366292294,1750176657615,-490.0,0.00016438,2]
[366292296,1750176657624,-1383.67,0.00016438,2]
[366292298,1750176657634,-715.29,0.00016438,2]
[366292300,1750176657645,-715.29,0.00016438,2]
[366292302,1750176657654,-490.0,0.00016438,2]
[366292304,1750176657664,-468.68853596,0.00016438,2]
[366292306,1750176657673,-715.29,0.00016438,2]
[366292308,1750176657683,-715.29,0.00016438,2]
[366292310,1750176657694,-715.29,0.00016438,2]
[366292312,1750176657707,-715.29,0.00016438,2]
[366292314,1750176657717,-490.0,0.00016438,2]
[366292316,1750176657727,-715.29,0.00016438,2]
[366292318,1750176657736,-17975.14,0.00016438,2]
[366292320,1750176657746,-715.29,0.00016438,2]
[366292322,1750176657755,-715.29,0.00016438,2]
[366292324,1750176657764,-490.0,0.00016438,2]
[366292326,1750176657775,-488.36528069,0.00016438,2]
[366292329,1750176657785,-715.29,0.00016438,2]
[366292331,1750176657795,-490.0,0.00016438,2]
[366292333,1750176657805,-1096.77,0.00016438,2]
[366292335,1750176657814,-715.29,0.00016438,2]
[366292336,1750176657823,-490.0,0.00016438,2]
[366292339,1750176657833,-828.87,0.00016438,2]
[366292341,1750176657842,-490.0,0.00016438,2]
[366292343,1750176657852,-506.99,0.00016438,2]
[366292345,1750176657862,-792.17,0.00016438,2]
[366292347,1750176657872,-490.0,0.00016438,2]
[366292349,1750176657881,-1845.5,0.00016438,2]
[366292351,1750176657891,-1271.48,0.00016438,2]
[366292353,1750176657901,-490.0,0.00016438,2]
[366292355,1750176657910,-602.97,0.00016438,2]
[366292357,1750176657919,-480.0,0.00016438,2]
[366292359,1750176657929,-3127.68,0.00016438,2]
[366292361,1750176657938,-1375.91,0.00016438,2]
[366292363,1750176657949,-490.0,0.00016438,2]
[366292365,1750176657959,-184.40093401,0.00016438,2]
[366292367,1750176657968,-490.0,0.00016438,2]
[366292369,1750176657978,-490.0,0.00016438,2]
[366292371,1750176657988,-6417.33,0.00016438,2]
[366292373,1750176657997,-490.0,0.00016438,2]
[366292375,1750176658007,-490.0,0.00016438,2]
[366292377,1750176658017,-1306.58,0.00016438,2]
[366292379,1750176658027,-1381.98,0.00016438,2]
[366292381,1750176658036,-490.0,0.00016438,2]
[366292383,1750176658046,-490.0,0.00016438,2]
[366292385,1750176658056,-490.0,0.00016438,2]
[366292387,1750176658066,-2085.29,0.00016438,2]
[366292389,1750176658076,-490.0,0.00016438,2]
[366292391,1750176658086,-491.7812651,0.00016438,2]
[366292393,1750176658096,-490.0,0.00016438,2]
[366292395,1750176658106,-490.0,0.00016438,2]
[366292397,1750176658116,-490.0,0.00016438,2]
[366292399,1750176658126,-4354.18,0.00016438,2]
[366292401,1750176658136,-490.0,0.00016438,2]
[366292403,1750176658146,-490.0,0.00016438,2]
[366292405,1750176658155,-1178.33,0.00016438,2]
[366292407,1750176658165,-620.95,0.00016438,2]
[366292409,1750176658175,-2669.73,0.00016438,2]
[366292411,1750176658185,-20340.29,0.00016438,2]
[366292413,1750176658195,-829.95,0.00016438,2]
[366292415,1750176658207,-822.35,0.00016438,2]
[366292417,1750176658217,-490.0,0.00016438,2]
[366292419,1750176658227,-457.84078104,0.00016438,2]
[366292421,1750176658236,-684.08,0.00016438,2]
[366292423,1750176658246,-490.0,0.00016438,2]
[366292425,1750176658256,-490.0,0.00016438,2]
[366292428,1750176658266,-490.0,0.00016438,2]
[366292430,1750176658276,-9014.61,0.00016438,2]
[366292432,1750176658285,-3620.89,0.00016438,2]
[366292433,1750176658295,-490.0,0.00016438,2]
[366292435,1750176658304,-1483.59,0.00016438,2]
[366292437,1750176658314,-670.3,0.00016438,2]
[366292439,1750176658325,-490.0,0.00016438,2]
[366292441,1750176658335,-5468.54,0.00016438,2]
[366292443,1750176658344,-1293.67,0.00016438,2]
[366292445,1750176658354,-490.0,0.00016438,2]
[366292447,1750176658363,-490.0,0.00016438,2]
[366292449,1750176658373,-490.0,0.00016438,2]
[366292451,1750176658383,-619.38,0.00016438,2]
[366292454,1750176658393,-1630.78,0.00016438,2]
[366292455,1750176658402,-490.0,0.00016438,2]
[366292457,1750176658413,-615.23716315,0.00016438,2]
[366292459,1750176658424,-3598.28,0.00016438,2]
[366292461,1750176658433,-542.45,0.00016438,2]
[366292463,1750176658443,-490.0,0.00016438,2]
[366292465,1750176658453,-490.0,0.00016438,2]
[366292467,1750176658463,-499.6,0.00016438,2]
[366292469,1750176658474,-876.09,0.00016438,2]
[366292471,1750176658484,-490.0,0.00016438,2]
[366292473,1750176658494,-328.05762343,0.00016438,2]
[366292475,1750176658504,-500.0,0.00016438,2]
[366292476,1750176658513,-766.09,0.00016438,2]
[366292477,1750176658523,-490.0,0.00016438,2]
[366292478,1750176658532,-490.0,0.00016438,2]
[366292479,1750176658542,-490.0,0.00016438,2]
[366292480,1750176658551,-490.0,0.00016438,2]
[366292481,1750176658561,-490.0,0.00016438,2]
[366292482,1750176658570,-3393.82,0.00016438,2]
[366292483,1750176658580,-500.0,0.00016438,2]
[366292484,1750176658589,-490.0,0.00016438,2]
[366292485,1750176658598,-646.24,0.00016438,2]
[366292486,1750176658608,-490.0,0.00016438,2]
[366292487,1750176658617,-490.0,0.00016438,2]
[366292488,1750176658627,-181.737722,0.00016438,2]
[366292489,1750176658637,-490.0,0.00016438,2]
[366292490,1750176658647,-490.0,0.00016438,2]
[366292491,1750176658656,-6258.48,0.00016438,2]
[366292492,1750176658665,-490.0,0.00016438,2]
[366292493,1750176658758,-151.0,0.00016438,2]
[366292494,1750176658767,-15790.94,0.00016438,2]
[366292495,1750176658778,-257.94950102,0.00016438,2]
[366292496,1750176658787,-490.0,0.00016438,2]
[366292498,1750176658797,-490.0,0.00016438,2]
[366292500,1750176658806,-490.0,0.00016438,2]
[366292502,1750176658815,-510.97,0.00016438,2]
[366292504,1750176658826,-500.0,0.00016438,2]
[366292506,1750176658835,-1585.08,0.00016438,2]
[366292507,1750176658844,-490.0,0.00016438,2]
[366292510,1750176658854,-331.87472638,0.00016438,2]
[366292511,1750176658863,-181.737722,0.00016438,2]
[366292514,1750176658873,-1096.89,0.00016438,2]
[366292516,1750176658882,-490.0,0.00016438,2]
[366292518,1750176658891,-490.0,0.00016438,2]
[366292520,1750176658901,-490.0,0.00016438,2]
[366292521,1750176658910,-490.0,0.00016438,2]
[366292524,1750176658919,-220.94716228,0.00016438,2]
[366292526,1750176658928,-490.0,0.00016438,2]
[366292527,1750176658937,-490.0,0.00016438,2]
[366292530,1750176658947,-490.0,0.00016438,2]
[366292532,1750176658957,-490.0,0.00016438,2]
[366292534,1750176658967,-2016.91,0.00016438,2]
[366292536,1750176658977,-1258.6,0.00016438,2]
[366292537,1750176658986,-783.82,0.00016438,2]
[366292539,1750176658995,-1305.87,0.00016438,2]
[366292542,1750176659005,-792.01,0.00016438,2]
[366292544,1750176659014,-1487.49,0.00016438,2]
[366292546,1750176659023,-151.0,0.00016438,2]
[366292548,1750176659032,-601.93,0.00016438,2]
[366292550,1750176659042,-1073.01,0.00016438,2]
[366292552,1750176659052,-490.0,0.00016438,2]
[366292554,1750176659062,-500.0,0.00016438,2]
[366292556,1750176659072,-500.0,0.00016438,2]
[366292558,1750176659081,-500.0,0.00016438,2]
[366292560,1750176659090,-500.0,0.00016438,2]
[366292561,1750176659099,-500.0,0.00016438,2]
[366292562,1750176659109,-399.63655468,0.00016438,2]
[366292563,1750176659119,-649.08,0.00016438,2]
[366292564,1750176659128,-462.82,0.00016438,2]
[366292565,1750176659138,-1173.84,0.00016438,2]
[366292566,1750176659148,-1329.06,0.00016438,2]
[366292567,1750176659158,-490.0,0.00016438,2]
[366292568,1750176659168,-490.0,0.00016438,2]
[366292569,1750176659177,-151.588707,0.00016438,2]
[366292570,1750176659186,-1142.51,0.00016438,2]
[366292571,1750176659196,-490.0,0.00016438,2]
[366292572,1750176659205,-655.96,0.00016438,2]
[366292573,1750176659215,-1297.49,0.00016438,2]
[366292574,1750176659224,-490.0,0.00016438,2]
[366292575,1750176659234,-2494.83,0.00016438,2]
[366292576,1750176659243,-673.92,0.00016438,2]
[366292577,1750176659253,-666.45,0.00016438,2]
[366292578,1750176659262,-490.0,0.00016438,2]
[366292579,1750176659271,-490.0,0.00016438,2]
[366292580,1750176659281,-497.37806624,0.00016438,2]
[366292581,1750176659290,-490.0,0.00016438,2]
[366292582,1750176659300,-151.0,0.00016438,2]
[366292583,1750176659309,-390.0,0.00016438,2]
[366292584,1750176659319,-490.0,0.00016438,2]
[366292585,1750176659327,-23779.43,0.00016438,2]
[366292586,1750176659337,-490.0,0.00016438,2]
[366292587,1750176659347,-490.0,0.00016438,2]
[366292588,1750176659357,-490.0,0.00016438,2]
[366292589,1750176659366,-490.0,0.00016438,2]
[366292590,1750176659376,-490.0,0.00016438,2]
[366292591,1750176659386,-490.0,0.00016438,2]
[366292592,1750176659395,-1427.76,0.00016438,2]
[366292593,1750176659405,-1513.89,0.00016438,2]
[366292594,1750176659415,-1916.18,0.00016438,2]
[366292595,1750176659424,-538.72,0.00016438,2]
[366292596,1750176659435,-490.0,0.00016438,2]
[366292597,1750176659444,-3639.02,0.00016438,2]
[366292598,1750176659454,-1477.93,0.00016438,2]
[366292599,1750176659463,-716.65,0.00016438,2]
[366292600,1750176659473,-1427.52,0.00016438,2]
[366292601,1750176659482,-490.0,0.00016438,2]
[366292602,1750176659491,-3183.08,0.00016438,2]
[366292603,1750176659501,-490.0,0.00016438,2]
[366292604,1750176659511,-490.0,0.00016438,2]
[366292605,1750176659520,-617.18,0.00016438,2]
[366292606,1750176659529,-490.0,0.00016438,2]
[366292607,1750176659539,-490.0,0.00016438,2]
[366292608,1750176659549,-673.61,0.00016438,2]
[366292609,1750176659558,-969.06,0.00016438,2]
[366292610,1750176659569,-355.07710039,0.00016438,2]
[366292611,1750176659578,-490.0,0.00016438,2]
[366292612,1750176659588,-1016.24,0.00016438,2]
[366292613,1750176659597,-604.46,0.00016438,2]
[366292614,1750176659607,-151.0,0.00016438,2]
[366292615,1750176659616,-490.0,0.00016438,2]
[366292616,1750176659626,-490.0,0.00016438,2]
[366292617,1750176659636,-3141.58,0.00016438,2]
[366292618,1750176659646,-717.53,0.00016438,2]
[366292619,1750176659655,-490.0,0.00016438,2]
[366292620,1750176659665,-522.92,0.00016438,2]
[366292621,1750176659675,-490.0,0.00016438,2]
[366292622,1750176659685,-2117.38,0.00016438,2]
[366292623,1750176659695,-480.0,0.00016438,2]
[366292624,1750176659710,-717.8,0.00016438,2]
[366292625,1750176659720,-151.0,0.00016438,2]
[366292626,1750176659729,-490.0,0.00016438,2]
[366292627,1750176659739,-634.87653682,0.00016438,2]
[366292628,1750176659749,-490.0,0.00016438,2]
[366292629,1750176659759,-958.91,0.00016438,2]
[366292630,1750176659768,-877.75,0.00016438,2]
[366292631,1750176659779,-1465.03,0.00016438,2]
[366292632,1750176659789,-160.256781,0.00016438,2]
[366292633,1750176659799,-2156.9,0.00016438,2]
[366292634,1750176659809,-150.0,0.00016438,2]
[366292635,1750176659818,-320.36271685,0.00016438,2]
[366292636,1750176659827,-490.0,0.00016438,2]
[366292637,1750176659837,-490.0,0.00016438,2]
[366292638,1750176659846,-1771.68,0.00016438,2]
[366292639,1750176659855,-490.0,0.00016438,2]
[366292640,1750176659865,-490.0,0.00016438,2]
[366292641,1750176659875,-490.0,0.00016438,2]
[366292642,1750176659884,-490.0,0.00016438,2]
[366292643,1750176659893,-490.0,0.00016438,2]
[366292644,1750176659903,-2041.93,0.00016438,2]
[366292645,1750176659912,-490.0,0.00016438,2]
[366292646,1750176659922,-490.0,0.00016438,2]
[366292647,1750176659931,-490.0,0.00016438,2]
[366292648,1750176659940,-648.949849,0.00016438,2]
[366292649,1750176659949,-480.0,0.00016438,2]
[366292650,1750176659959,-1459.58,0.00016438,2]
[366292651,1750176659968,-490.0,0.00016438,2]
[366292652,1750176659978,-998.96,0.00016438,2]
[366292653,1750176659987,-4587.29,0.00016438,2]
[366292654,1750176659996,-836.91,0.00016438,2]
[366292655,1750176660006,-698.54,0.00016438,2]
[366292656,1750176660015,-544.05,0.00016438,2]
[366292657,1750176660025,-505.38804211,0.00016438,2]
[366292658,1750176660035,-648.949849,0.00016438,2]
[366292659,1750176660044,-490.0,0.00016438,2]
[366292660,1750176660054,-490.0,0.00016438,2]
[366292661,1750176660064,-150.0,0.00016438,2]
[366292662,1750176660075,-150.0,0.00016438,2]
[366292663,1750176660085,-490.0,0.00016438,2]
[366292664,1750176660095,-461.48532253,0.00016438,2]
[366292665,1750176660105,-490.0,0.00016438,2]
[366292666,1750176660115,-500.0,0.00016438,2]
[366292667,1750176660125,-660.94,0.00016438,2]
[366292668,1750176660136,-490.0,0.00016438,2]
[366292669,1750176660146,-490.0,0.00016438,2]
[366292670,1750176660156,-151.0,0.00016438,2]
[366292671,1750176660166,-1077.78,0.00016438,2]
[366292672,1750176660177,-490.0,0.00016438,2]
[366292673,1750176660188,-1778.77,0.00016438,2]
[366292674,1750176660198,-699.14,0.00016438,2]
[366292675,1750176660213,-151.0,0.00016438,2]
[366292676,1750176660224,-490.0,0.00016438,2]
[366292677,1750176660234,-5881.34,0.00016438,2]
[366292678,1750176660245,-490.0,0.00016438,2]
[366292679,1750176660256,-490.0,0.00016438,2]
[366292680,1750176660266,-151.0,0.00016438,2]
[366292681,1750176660276,-490.0,0.00016438,2]
[366292682,1750176660286,-500.0,0.00016438,2]
[366292683,1750176660297,-490.0,0.00016438,2]
[366292684,1750176660308,-500.0,0.00016438,2]
[366292685,1750176660318,-490.0,0.00016438,2]
[366292686,1750176660329,-500.0,0.00016438,2]
[366292687,1750176660339,-515.60226011,0.00016438,2]
[366292688,1750176660349,-300.0,0.00016438,2]
[366292689,1750176660359,-1180.26,0.00016438,2]
[366292690,1750176660369,-490.0,0.00016438,2]